bitfinex/quotes_ETHUSD_20220309
["timestamp","ask_amount","ask_price","bid_price","bid_amount"]
[1646837981535,0.05594379,2739.2,2738.7,1.82637]
[1646837981732,0.05594379,2739.2,2739.0,0.00400862]
[1646837982535,0.05594379,2739.2,2738.9,0.91334]
[1646837982937,0.05594379,2739.2,2739.0,0.00400862]
[1646837983738,0.05594379,2739.2,2738.9,1.21334]
[1646837984036,0.05594379,2739.2,2739.0,0.00400862]
[1646837985082,0.05594379,2739.2,2738.9,1.21331]
[1646837985383,0.05594379,2739.2,2739.0,0.00386269]
[1646837986184,0.05594379,2739.2,2738.7,1.82637]
[1646837986581,0.05594379,2739.2,2739.0,0.00386269]
[1646837987488,0.91348,2739.3,2739.0,3.5]
[1646837987688,0.91348,2739.3,2739.0,0.30386269]
[1646837988736,0.91348,2739.3,2739.0,0.3]
[1646837988932,0.91348,2739.3,2739.0,0.00375728]
[1646837989334,0.91348,2739.3,2739.0,0.30375728]
[1646837989937,0.91348,2739.3,2739.0,0.3]
[1646837990238,0.91348,2739.3,2739.0,0.30375728]
[1646837990447,0.91307,2739.9,2739.2,0.024644]
[1646837990641,0.0602269,2740.1,2739.5,0.024703]
[1646837990839,0.029168,2740.6,2739.8,0.10838825]
[1646837990840,0.04724687,2740.6,2739.8,0.10838825]
[1646837991046,0.04724687,2740.6,2740.1,0.024826]
[1646837991243,3.0,2740.7,2740.1,1.18906887]
[1646837991439,3.0,2740.7,2740.2,1.82537]
[1646837991638,3.0,2740.7,2740.3,0.9127044]
[1646837991898,3.0,2740.7,2740.5,0.024671]
[1646837991899,2.0,2740.7,2740.5,0.024671]
[1646837992102,2.0,2740.7,2740.5,3.524671]
[1646837992496,2.0,2740.7,2740.6,0.06994669]
[1646837993599,3.0,2740.7,2740.4,0.6]
[1646837993799,2.0,2740.7,2740.2,0.6]
[1646837993997,2.0,2740.7,2740.4,0.00354225]
[1646837994297,1.0,2740.7,2740.4,0.00354225]
[1646837995098,1.0,2740.7,2740.4,0.0035422]
[1646837995735,0.05638291,2740.6,2740.4,0.0035422]
[1646837995935,0.05638291,2740.6,2740.1,0.024501]
[1646837996337,0.05638291,2740.6,2740.4,0.00357798]
[1646837997139,0.91286,2740.5,2740.3,0.91284]
[1646837997439,1.54521072,2740.7,2740.4,0.00357795]
[1646837997440,0.04988353,2740.6,2740.4,0.00357795]
[1646837998440,0.04988353,2740.6,2740.3,0.91284]
[1646837998641,0.04988353,2740.6,2740.4,0.00357795]
[1646837999483,0.04988353,2740.6,2740.4,6.2382673]
[1646837999682,0.04988353,2740.6,2740.5,0.3]
[1646837999882,1.058904,2741.0,2740.5,3.824548]
[1646838000181,1.058904,2741.0,2740.5,4.8097196]
[1646838000382,0.91271,2741.0,2740.5,5.1097196]
[1646838000581,0.91271,2741.0,2740.5,1.6097196]
[1646838000782,0.91271,2741.0,2740.5,1.3097196]
[1646838000984,0.058465,2741.8,2740.8,0.02469]
[1646838001184,0.058465,2741.8,2741.0,0.024854]
[1646838001185,0.00155589,2741.6,2741.0,0.024854]
[1646838001389,0.00155589,2741.6,2741.3,0.024859]
[1646838001887,8.74696665,2742.5,2741.5,0.93241192]
[1646838001888,0.91238,2742.1,2741.5,0.93241192]
[1646838002086,0.91238,2742.1,2741.6,0.024571]
[1646838002287,0.91238,2742.1,2741.8,0.024712]
[1646838002288,0.00623482,2742.0,2741.8,0.024712]
[1646838002687,0.00623482,2742.0,2741.6,0.024571]
[1646838002886,0.00623482,2742.0,2741.5,2.42465]
[1646838003134,0.00623482,2742.0,2741.5,1.82465]
[1646838003135,0.06014705,2742.0,2741.5,1.82465]
[1646838003333,0.06014705,2742.0,2741.4,0.3]
[1646838003533,1.0,2741.8,2741.1,0.024501]
[1646838003733,1.0,2741.8,2740.8,1.141]
[1646838003734,0.91268,2741.6,2740.9,0.024501]
[1646838003937,0.05154442,2741.5,2741.2,0.91262]
[1646838004134,0.05154442,2741.5,2741.3,0.13131444]
[1646838004333,0.05154442,2741.5,2741.2,0.91262]
[1646838004633,1.87677442,2741.5,2741.4,0.03300611]
[1646838004833,6.0,2741.4,2740.6,0.024501]
[1646838005035,0.91291,2741.2,2740.6,0.024501]
[1646838005235,0.05929841,2741.1,2740.6,0.024501]
[1646838005636,0.05929841,2741.1,2740.8,0.13131444]
[1646838006035,0.05929841,2741.1,2740.7,0.91279]
[1646838006801,0.05929841,2741.1,2740.5,0.0724216]
[1646838006802,3.0,2740.9,2740.5,0.0724216]
[1646838006999,3.0,2740.9,2740.4,0.00245301]
[1646838007000,6.0,2740.7,2740.4,0.00245301]
[1646838007192,0.50475631,2740.6,2740.4,0.00245301]
[1646838007392,0.95963069,2740.5,2740.4,0.00245301]
[1646838007592,2.40463069,2740.5,2740.4,0.00245301]
[1646838007992,0.91309,2740.5,2740.2,0.024501]
[1646838008395,0.14396574,2740.8,2740.4,6.0]
[1646838008595,1.79443401,2741.3,2740.7,0.024712]
[1646838008596,1.0,2741.3,2740.7,0.024712]
[1646838008796,1.79443401,2741.9,2740.7,0.024712]
[1646838008995,0.91257,2741.4,2741.0,0.024693]
[1646838009197,0.91257,2741.4,2741.1,0.31778165]
[1646838009997,4.45508959,2741.4,2741.1,0.31778165]
[1646838010195,0.445,2741.3,2741.2,0.13131444]
[1646838010398,0.445,2741.3,2740.7,1.82535]
[1646838010399,6.0,2741.1,2740.7,1.82535]
[1646838010634,0.96714122,2740.9,2740.4,1.851139]
[1646838010834,1.41214122,2740.9,2740.4,1.82566]
[1646838011032,2.41214122,2740.9,2740.4,1.82566]
[1646838011548,2.65496477,2740.9,2740.3,0.913]
[1646838011734,1.0,2740.7,2740.3,0.913]
[1646838011935,1.91305,2740.6,2740.4,0.00401227]
[1646838012836,1.91305,2740.6,2740.3,0.98204966]
[1646838013035,0.91305,2740.6,2740.4,0.00401218]
[1646838013538,0.91305,2740.6,2739.9,0.024501]
[1646838013539,6.0,2740.4,2739.9,0.024501]
[1646838013743,6.0,2740.4,2739.7,0.18892967]
[1646838013744,4.41325,2740.3,2739.7,0.18892967]
[1646838013938,2.0,2739.9,2739.7,0.16442867]
[1646838014138,3.5,2739.8,2739.7,0.16442867]
[1646838014387,2.0,2739.8,2739.7,0.16442867]
[1646838014783,1.0,2739.8,2739.7,0.16442867]
[1646838014983,1.0,2739.8,2739.7,2.867e-05]
[1646838015385,1.0,2739.8,2738.9,0.23570076]
[1646838015386,6.0,2739.5,2738.9,0.23570076]
[1646838015583,6.0,2739.5,2738.9,0.16442867]
[1646838015783,0.445,2739.4,2738.9,0.16442867]
[1646838015984,1.0,2739.1,2738.9,0.16442867]
[1646838016585,1.0,2739.2,2738.9,0.16442867]
[1646838016783,1.445,2739.2,2738.9,0.16830459]
[1646838016989,1.445,2739.2,2738.9,1.99541459]
[1646838016990,0.91361,2739.0,2738.9,1.99541459]
[1646838017587,1.10438183,2739.0,2738.9,1.99153867]
[1646838018038,0.19077183,2739.0,2738.9,1.99153867]
[1646838018244,1.0,2739.2,2739.0,0.08570088]
[1646838018441,0.19075071,2739.5,2739.0,0.08570088]
[1646838018640,0.19075071,2739.5,2739.1,0.91328]
[1646838019046,0.33701071,2739.5,2739.1,0.91328]
[1646838019246,0.19075071,2739.5,2739.2,3.57473714]
[1646838019441,0.19075071,2739.5,2739.1,0.91328]
[1646838019442,0.9133,2739.6,2739.3,0.39138957]
[1646838019844,6.0,2739.5,2739.2,0.91329]
[1646838020043,6.0,2739.5,2738.9,0.16442867]
[1646838020044,3.945,2739.4,2738.9,0.16442867]
[1646838020243,0.91358,2739.3,2738.9,0.16442867]
[1646838020443,0.04979354,2739.1,2738.9,0.16442867]
[1646838021444,2.0,2739.2,2738.9,0.11655207]
[1646838021645,2.0,2739.2,2738.9,0.12043044]
[1646838022095,0.04574089,2739.2,2738.9,1.03377044]
[1646838022298,1.82699,2739.2,2739.0,0.0861358]
[1646838022493,0.90912089,2739.3,2739.0,0.0861358]
[1646838022695,0.90912089,2739.3,2738.9,1.33221092]
[1646838022696,1.90912089,2739.3,2738.9,1.33221092]
[1646838022895,0.90912089,2739.3,2738.9,1.33221092]
[1646838023294,0.90912089,2739.3,2738.9,1.32613956]
[1646838023696,0.90912089,2739.3,2738.9,1.02382071]
[1646838023894,0.90912089,2739.3,2739.0,0.0023188]
[1646838024898,0.90912089,2739.3,2738.9,1.32382071]
[1646838025096,0.90912089,2739.3,2739.0,0.00229467]
[1646838025735,1.82702,2739.1,2738.9,0.11276207]
[1646838026137,1.9135,2739.2,2738.9,0.11276207]
[1646838026336,0.9135,2739.2,2738.9,0.11276207]
[1646838027142,4.0,2739.5,2739.0,0.07298904]
[1646838027343,1.9133,2739.5,2739.0,0.07298904]
[1646838027744,0.9133,2739.5,2739.0,0.07298904]
[1646838028242,0.9133,2739.5,2738.9,0.11276207]
[1646838028444,3.5,2739.4,2738.9,0.11276207]
[1646838028743,4.5,2739.4,2738.7,0.07825241]
[1646838028942,4.5,2739.4,2738.9,0.00402144]
[1646838029143,1.0,2739.2,2738.9,0.00402144]
[1646838029390,0.91349,2739.1,2738.9,0.00402144]
[1646838029790,0.91349,2739.1,2738.8,0.91348]
[1646838029989,0.91349,2739.1,2738.9,0.00402133]
[1646838030194,0.95823628,2739.1,2738.9,0.00402133]
[1646838030590,1.0,2739.0,2738.9,0.00402133]
[1646838030990,1.91357,2739.0,2738.6,1.99138866]
[1646838031191,1.91357,2739.0,2738.9,0.00402137]
[1646838032196,0.91357,2739.0,2738.8,0.91347]
[1646838032397,0.91357,2739.0,2738.8,0.91749142]
[1646838033036,0.91357,2739.0,2738.8,0.00402142]
[1646838033235,1.0,2738.9,2738.7,1.82697]
[1646838033435,1.21357,2739.0,2738.7,1.82697]
[1646838033635,0.91357,2739.0,2738.8,0.00388875]
[1646838034235,0.91357,2739.0,2738.8,0.09068469]
[1646838034636,0.91357,2739.0,2738.8,0.08679594]
[1646838037096,0.91357,2739.0,2738.8,0.09081469]
[1646838037697,0.19076812,2739.5,2738.8,1.00408639]
[1646838037698,0.91328,2739.4,2738.8,1.00408639]
[1646838037895,0.91328,2739.4,2739.0,0.07226934]
[1646838041344,0.91328,2739.4,2739.0,0.98556934]
[1646838041545,2.82655,2739.6,2739.1,2.81458776]
[1646838041744,1.82655,2739.6,2739.2,0.07687696]
[1646838041944,2.82655,2739.6,2739.2,0.99006696]
[1646838042144,2.82655,2739.6,2739.3,0.23663735]
[1646838042343,2.82655,2739.6,2739.4,0.07237392]
[1646838043143,1.82655,2739.6,2739.4,0.07237392]
[1646838043746,0.91317,2739.7,2739.5,1.8263]
[1646838044045,0.19073029,2740.2,2739.6,0.07835922]
[1646838044299,0.024501,2740.6,2739.7,0.91292]
[1646838044487,0.024501,2740.6,2739.9,0.28122291]
[1646838044888,0.024501,2740.6,2740.1,0.91293]
[1646838045089,2.03191561,2740.9,2740.2,0.08753206]
[1646838045090,0.9128,2740.7,2740.2,0.08753206]
[1646838045392,0.9128,2740.7,2739.9,2.03579212]
[1646838045393,0.9128,2740.7,2740.1,0.38865898]
[1646838045789,0.9128,2740.7,2740.1,0.08865898]
[1646838045991,0.9128,2740.7,2740.3,0.91279]
[1646838046288,0.9128,2740.7,2740.4,0.07197769]
[1646838047492,1.82569,2740.9,2740.4,0.07197769]
[1646838047691,2.82569,2740.9,2740.4,0.07197769]
[1646838047892,1.82569,2740.9,2740.4,0.07197769]
[1646838048137,2.82569,2740.9,2740.4,0.07197769]
[1646838048440,1.82569,2740.9,2740.4,0.07197769]
[1646838048639,2.82569,2740.9,2740.4,0.07197769]
[1646838048838,1.82569,2740.9,2740.4,0.02197769]
[1646838049038,2.82569,2740.9,2740.4,0.02197769]
[1646838049238,1.82569,2740.9,2740.4,0.02197769]
[1646838049440,2.82569,2740.9,2740.4,0.02197769]
[1646838049839,2.82569,2740.9,2740.3,1.48939869]
[1646838051144,1.82569,2740.9,2740.3,1.48939869]
[1646838051343,2.82569,2740.9,2740.3,1.48334869]
[1646838051540,1.82569,2740.9,2740.3,1.48334869]
[1646838051793,0.04919363,2740.8,2740.3,1.20675]
[1646838051998,2.82569,2740.9,2740.3,1.20675]
[1646838051999,1.82569,2740.9,2740.3,1.20675]
[1646838052198,0.91283,2740.7,2740.3,1.20675]
[1646838055202,0.91283,2740.7,2740.3,0.9128]
[1646838057846,0.91283,2740.7,2740.3,0.788098]
[1646838058646,0.0563712,2740.6,2740.3,0.788098]
[1646838059993,0.0563712,2740.6,2740.3,1.088098]
[1646838060394,0.92780807,2741.0,2740.4,3.5]
[1646838060595,0.92780807,2741.0,2740.5,1.8254]
[1646838060794,0.01508807,2741.0,2740.6,0.3]
[1646838060996,1.849921,2741.3,2740.7,0.07831873]
[1646838061195,1.90099184,2741.3,2740.6,0.3]
[1646838061395,0.00377201,2741.1,2740.6,0.3]
[1646838061596,0.91644201,2741.1,2740.7,0.91265]
[1646838061795,0.04659554,2741.0,2740.7,0.91265]
[1646838061995,0.04659554,2741.0,2740.6,0.3]
[1646838061996,1.82566,2740.9,2740.6,0.3]
[1646838062194,1.852004,2740.9,2740.5,2.1254]
[1646838062694,0.026344,2740.9,2740.5,2.1254]
[1646838063549,0.026344,2740.9,2740.3,1.82575]
[1646838063550,0.07567132,2740.9,2740.3,1.82575]
[1646838063749,0.07567132,2740.9,2740.1,0.25475202]
[1646838063750,0.05593458,2740.8,2740.1,0.11655205]
[1646838063953,1.8695599,2740.7,2740.1,0.11655205]
[1646838064153,1.0,2740.4,2740.1,0.11655205]
[1646838065150,0.17198737,2740.6,2740.1,0.11655205]
[1646838065351,2.0,2740.8,2740.1,5.44229205]
[1646838065352,1.0,2740.8,2740.1,5.44229205]
[1646838065553,1.0,2740.7,2740.1,5.74229205]
[1646838065751,0.04143202,2740.9,2740.3,0.91274]
[1646838065951,0.026344,2740.9,2740.3,0.91274]
[1646838066354,0.026344,2740.9,2740.4,4.4127083]
[1646838066551,0.13346876,2741.0,2740.4,6.32415592]
[1646838066552,0.01508804,2741.0,2740.4,6.32415592]
[1646838066810,0.01508804,2741.0,2740.5,1.78552595]
[1646838067200,1.850001,2741.2,2740.6,3.5]
[1646838067401,0.00389931,2741.1,2740.7,0.07072197]
[1646838067600,0.00389931,2741.1,2740.7,1.89587197]
[1646838067801,0.00389931,2741.1,2740.8,3.5]
[1646838068199,0.08002477,2741.5,2740.8,3.5]
[1646838068399,0.08002477,2741.5,2740.9,0.91261]
[1646838068400,0.91259,2741.4,2740.9,0.91261]
[1646838068600,0.00377553,2741.1,2740.9,0.91261]
[1646838068802,0.00377553,2741.1,2741.0,3.5]
[1646838069001,0.00377553,2741.1,2740.9,0.91261]
[1646838069202,0.00377553,2741.1,2740.9,0.99594079]
[1646838069704,0.91259,2741.4,2740.9,0.99594079]
[1646838070006,0.00377551,2741.1,2740.9,0.99594079]
[1646838070204,0.91643551,2741.1,2740.9,0.08333079]
[1646838070674,0.91266,2741.1,2740.9,0.08333079]
[1646838070873,1.0,2741.3,2740.9,0.08333079]
[1646838071085,0.00388989,2741.1,2740.9,0.08333079]
[1646838071983,0.024501,2741.5,2740.9,0.08333079]
[1646838072183,0.00379777,2741.1,2740.9,0.08333079]
[1646838073182,0.937021,2741.5,2740.9,0.08333079]
[1646838073381,0.00379777,2741.1,2740.9,0.08333079]
[1646838074389,0.91262,2741.2,2740.9,0.08333079]
[1646838074593,0.0037978,2741.1,2740.9,0.08333079]
[1646838074793,0.01518893,2741.5,2741.1,0.99050377]
[1646838074993,0.01518893,2741.5,2741.3,0.08248641]
[1646838075590,0.024501,2741.8,2741.3,0.08248641]
[1646838075890,0.024501,2741.8,2741.5,0.91237]
[1646838076091,0.024501,2742.3,2741.6,3.5]
[1646838076294,0.024501,2742.3,2741.7,0.07698501]
[1646838076691,0.06083364,2742.5,2741.7,0.07698501]
[1646838076894,0.06083364,2742.5,2742.3,0.99540093]
[1646838077099,0.06083364,2742.5,2742.4,0.06824486]
[1646838077100,0.03633264,2742.5,2742.4,0.06824486]
[1646838077497,0.03633264,2742.5,2742.2,0.91187]
[1646838077498,0.00682448,2742.3,2742.2,0.91187]
[1646838077695,0.00682448,2742.3,2742.1,1.82373]
[1646838077897,0.00682448,2742.3,2742.1,2.42373]
[1646838078143,0.00682448,2742.3,2742.1,1.82373]
[1646838078843,0.00682448,2742.3,2742.2,3.5]
[1646838079045,0.00682448,2742.3,2742.2,3.57292654]
[1646838079244,0.00682448,2742.3,2742.2,0.07292654]
[1646838079447,0.01084251,2742.3,2742.2,0.07292654]
[1646838079649,0.01084251,2742.3,2742.1,2.24028205]
[1646838079846,1.85741059,2742.6,2742.1,0.11655205]
[1646838080048,0.029168,2742.4,2742.1,0.11655205]
[1646838080347,0.91231,2742.2,2742.1,0.11655205]
[1646838080544,0.029168,2742.4,2742.1,0.11655205]
[1646838082498,0.941358,2742.4,2742.1,0.11655205]
[1646838082997,0.04865213,2742.3,2742.1,0.11655205]
[1646838084500,0.04865213,2742.3,2742.1,0.11252524]
[1646838084903,1.82466,2742.3,2742.1,0.11252524]
[1646838085100,0.04720597,2742.2,2742.1,0.11252524]
[1646838085544,0.95952597,2742.2,2742.1,0.11252524]
[1646838085744,0.91232,2742.2,2742.1,0.11252524]
[1646838085947,1.82466,2742.3,2742.1,3.61252524]
[1646838085948,1.0,2742.3,2742.1,3.61252524]
[1646838086145,1.0,2742.3,2742.1,0.11252524]
[1646838086346,0.024501,2742.4,2742.1,0.11252524]
[1646838086748,0.02607166,2742.4,2742.1,0.11252524]
[1646838086951,0.08250547,2742.4,2742.1,1.02473524]
[1646838087150,0.08250547,2742.4,2742.1,0.11252524]
[1646838087554,0.08093481,2742.4,2742.1,0.11252524]
[1646838087751,0.029168,2742.2,2742.1,0.11252524]
[1646838087950,0.941668,2742.2,2742.1,0.11252524]
[1646838088350,6.05017092,2742.1,2742.0,0.72260001]
[1646838088550,6.49517092,2742.1,2741.6,0.04785022]
[1646838088750,2.77111125,2742.0,2741.6,0.04785022]
[1646838088950,2.77111125,2742.0,2740.7,1.82515]
[1646838088951,6.0,2741.6,2740.7,1.82515]
[1646838089151,6.0,2741.6,2740.9,0.00402296]
[1646838089152,0.91278,2741.4,2740.9,0.00402296]
[1646838089396,0.91278,2741.4,2741.0,0.04785021]
[1646838089397,0.05273915,2741.3,2741.0,0.04785021]
[1646838089596,0.91278,2741.4,2741.0,0.04785021]
[1646838089997,0.91278,2741.4,2741.0,0.04961254]
[1646838090498,0.91278,2741.4,2741.0,1.2165199]
[1646838090699,1.0,2741.9,2741.1,3.8646]
[1646838090899,0.01608253,2742.1,2741.2,0.07272275]
[1646838091298,0.01608253,2742.1,2741.2,1.82469]
[1646838091299,1.82489,2742.0,2741.2,1.82469]
[1646838091697,1.82489,2742.0,2741.2,2.12469]
[1646838091900,0.91244,2741.7,2741.2,0.3]
[1646838092102,0.91244,2741.7,2741.1,0.0745919]
[1646838092304,0.91244,2741.7,2741.0,0.21404117]
[1646838092502,1.05048517,2741.6,2741.0,0.21404117]
[1646838092701,1.82539,2741.5,2741.0,0.21404117]
[1646838093152,1.82539,2741.5,2741.1,0.11655205]
[1646838093153,2.24387655,2741.5,2741.1,0.11655205]
[1646838093548,0.91268,2741.4,2741.1,0.11655205]
[1646838094751,2.90935681,2741.6,2741.1,0.11655205]
[1646838094752,3.85887164,2741.6,2741.1,0.11655205]
[1646838094952,3.85887164,2741.6,2741.1,0.19040674]
[1646838095150,1.0,2741.6,2741.1,0.19040674]
[1646838095351,0.91246,2741.7,2741.1,0.19040674]
[1646838096151,0.91246,2741.7,2741.1,1.94144205]
[1646838096352,0.91246,2741.7,2741.2,0.07135414]
[1646838097603,0.18230368,2741.7,2741.3,6.0]
[1646838097803,0.01610287,2742.1,2741.5,0.07220712]
[1646838098401,3.0,2742.4,2741.5,1.28444442]
[1646838098603,0.95071029,2742.6,2741.6,1.05999496]
[1646838098802,0.95071029,2742.6,2741.6,1.35999496]
[1646838099001,0.95071029,2742.6,2741.7,0.99294369]
[1646838099302,0.04283306,2742.5,2741.7,0.99294369]
[1646838099502,0.91232,2742.3,2741.8,0.3]
[1646838100544,0.00158325,2742.4,2741.8,1.2121674]
[1646838100746,0.95074029,2742.6,2741.8,1.29480352]
[1646838100943,0.95074029,2742.6,2742.0,0.91217]
[1646838101144,0.00158319,2742.4,2742.0,0.91217]
[1646838101354,0.00158319,2742.4,2742.1,0.06926456]
[1646838101947,0.03857029,2742.6,2742.1,0.06926456]
[1646838102348,0.00404164,2742.4,2742.1,0.06926456]
[1646838103351,0.03857029,2742.6,2742.1,0.06926456]
[1646838103551,0.00157496,2742.4,2742.1,0.06926456]
[1646838104048,0.00157496,2742.4,2742.0,1.08012329]
[1646838104501,0.03857029,2742.6,2742.0,1.08188562]
[1646838104804,0.91381496,2742.4,2742.0,0.16795329]
[1646838105001,0.91381496,2742.4,2742.0,0.21580349]
[1646838105701,0.91224,2742.4,2742.0,0.21756582]
[1646838105904,0.91224,2742.4,2742.0,1.17757602]
[1646838105905,0.0040444,2742.4,2742.0,1.17757602]
[1646838106905,0.03857029,2742.6,2742.0,1.17757602]
[1646838107105,0.00378259,2742.4,2742.0,1.22542622]
[1646838107305,0.91599259,2742.4,2742.0,1.22542622]
[1646838108150,0.91599259,2742.4,2742.0,1.27327642]
[1646838108451,0.91599259,2742.4,2742.0,0.36111642]
[1646838108852,0.91599259,2742.4,2741.8,1.94514469]
[1646838108853,9.5,2742.3,2741.5,0.11655205]
[1646838109060,9.5,2742.3,2740.9,0.05166135]
[1646838109061,0.91247,2742.0,2740.9,0.05166135]
[1646838109253,4.00693286,2741.9,2740.9,0.04787658]
[1646838109452,0.05467136,2741.8,2740.9,0.04787658]
[1646838109652,1.0,2741.6,2740.9,0.04787658]
[1646838109852,0.49714286,2741.5,2741.0,0.49504822]
[1646838110052,0.06406458,2741.4,2741.0,0.49328589]
[1646838110258,0.06406458,2741.4,2741.0,0.79328589]
[1646838110856,0.50821685,2741.7,2741.0,0.49328589]
[1646838111055,0.445,2741.5,2741.0,0.49328589]
[1646838111256,0.06145452,2741.7,2741.0,0.49328589]
[1646838111257,0.50304451,2741.4,2741.0,0.49328589]
[1646838111453,0.06632171,2741.3,2741.0,0.49328589]
[1646838111654,1.82561,2741.2,2741.0,0.49328589]
[1646838111901,0.06212865,2741.1,2741.0,0.49328589]
[1646838112705,0.97491865,2741.1,2741.0,0.49328589]
[1646838115552,0.4932,2741.0,2740.9,0.00390761]
[1646838115755,0.4932,2741.0,2740.1,1.5104605]
[1646838115756,0.445,2741.0,2740.1,1.5104605]
[1646838115951,2.0934623,2741.1,2740.2,5.01047304]
[1646838115952,0.91295,2740.8,2740.2,5.01047304]
[1646838116154,1.0,2741.2,2740.3,1.51047304]
[1646838116351,1.0,2741.2,2740.4,3.5]
[1646838116352,0.0598592,2741.1,2740.4,3.5]
[1646838116551,0.0598592,2741.1,2740.2,3.49392076]
[1646838116752,0.0598592,2741.1,2740.3,1.51046051]
[1646838116956,0.06566258,2741.0,2740.2,0.3]
[1646838117157,1.82582,2740.8,2740.0,0.028001]
[1646838117357,1.82582,2740.8,2740.0,0.3]
[1646838117559,0.05477355,2740.7,2739.9,0.3]
[1646838117758,2.08826278,2741.3,2739.8,6.0]
[1646838117961,2.08826278,2741.3,2740.3,3.0]
[1646838117962,0.91283,2741.3,2740.3,3.0]
[1646838118166,0.04855168,2741.7,2741.2,3.0]
[1646838118366,2.0,2741.9,2741.3,5.45515297]
[1646838118560,0.05257129,2742.6,2741.4,5.37475297]
[1646838118762,0.03857029,2742.6,2741.6,0.3646]
[1646838118961,0.03857029,2742.6,2741.8,0.07618976]
[1646838119401,0.03857029,2742.6,2741.5,0.028551]
[1646838119402,0.00157513,2741.7,2741.5,0.028551]
[1646838119600,0.00157513,2741.7,2741.3,4.41238]
[1646838119802,0.00157513,2741.7,2741.4,5.00988501]
[1646838119999,0.00157513,2741.7,2741.5,3.12767588]
[1646838120207,0.03857029,2742.6,2741.6,1.50988501]
[1646838120399,0.03857029,2742.6,2741.8,0.07078238]
[1646838120602,0.01615553,2742.3,2741.8,0.07078238]
[1646838120799,0.01615553,2742.3,2741.8,0.37078238]
[1646838121102,0.01615553,2742.3,2742.0,0.0733468]
[1646838121600,0.03857029,2742.6,2742.0,0.0733468]
[1646838121798,0.00403943,2742.2,2742.0,0.0733468]
[1646838122204,0.00403943,2742.2,2741.7,0.0815018]
[1646838122205,0.91637943,2742.2,2741.7,0.0815018]
[1646838122406,0.91637943,2742.2,2741.3,0.08414026]
[1646838122605,0.91234,2742.2,2741.3,0.08414026]
[1646838123049,0.91637939,2742.2,2741.4,1.51001448]
[1646838123250,0.91637939,2742.2,2741.6,0.91227]
[1646838123548,0.91637939,2742.2,2741.7,0.0871601]
[1646838124053,0.91234,2742.2,2741.7,0.0871601]
[1646838124251,0.00403957,2742.0,2741.7,0.0871601]
[1646838124749,0.00403957,2742.0,2741.7,0.35825019]
[1646838125149,0.00403957,2742.0,2741.8,0.07301166]
[1646838125351,0.91222,2742.4,2741.8,0.37301166]
[1646838125552,0.00391842,2742.0,2741.8,0.37301166]
[1646838126355,0.91235,2742.1,2741.8,0.37301166]
[1646838126557,0.00157783,2742.0,2741.8,0.37301166]
[1646838127601,0.91235,2742.1,2741.8,0.37301166]
[1646838127801,0.00157783,2742.0,2741.8,1.28530166]
[1646838128700,0.91222,2742.4,2741.8,1.28530166]
[1646838128901,0.00157607,2742.0,2741.8,1.28530166]
[1646838129902,0.91232,2742.2,2741.8,1.28530166]
[1646838130101,0.00157607,2742.0,2741.8,1.28530166]
[1646838130748,0.00157607,2742.0,2741.8,1.21229]
[1646838131148,0.91222,2742.4,2741.8,2.124537]
[1646838131349,0.00157607,2742.0,2741.8,2.124537]
[1646838131751,0.00157607,2742.0,2741.8,5.624537]
[1646838131951,0.00630333,2742.4,2742.0,6.3646]
[1646838132151,0.00630333,2742.4,2742.1,4.14242383]
[1646838132353,0.18468129,2742.6,2742.2,0.029168]
[1646838132753,0.01617035,2742.4,2742.2,0.029168]
[1646838132952,0.01617035,2742.4,2742.2,0.393768]
[1646838133152,0.18468129,2742.6,2742.3,3.5]
[1646838133355,0.18468129,2742.6,2742.4,1.55842132]
[1646838133552,0.18468129,2742.6,2742.3,3.8]
[1646838133753,0.18468129,2742.6,2742.2,1.82375]
[1646838133953,0.18468129,2742.6,2742.3,4.7118662]
[1646838134399,0.18468129,2742.6,2742.3,0.9118662]
[1646838134797,0.18468129,2742.6,2742.2,1.82375]
[1646838135195,0.18625524,2742.6,2742.2,1.82375]
[1646838135994,0.18468129,2742.6,2742.2,1.82375]
[1646838136197,0.00404217,2742.5,2742.2,1.82375]
[1646838136396,0.00404217,2742.5,2742.2,5.32375]
[1646838136594,0.00404217,2742.5,2742.3,0.911918]
[1646838137004,0.00404217,2742.5,2742.4,3.5]
[1646838137201,0.18468129,2742.6,2742.4,3.8]
[1646838137600,0.00394481,2742.5,2742.4,3.8]
[1646838138049,0.00394481,2742.5,2742.4,0.3]
[1646838138447,0.18468129,2742.6,2742.4,0.3]
[1646838138648,0.18862606,2742.6,2742.3,0.939919]
[1646838138851,0.18862606,2742.6,2742.3,0.911918]
[1646838139051,0.04251506,2742.6,2742.2,1.82375]
[1646838139655,0.03857029,2742.6,2742.2,1.82375]
[1646838139853,0.00394481,2742.5,2742.2,1.82375]
[1646838140453,0.00297314,2742.5,2742.2,1.82375]
[1646838140955,0.95077029,2742.6,2742.4,0.07028556]
[1646838141152,0.95077029,2742.6,2742.2,1.82375]
[1646838141355,0.95077029,2742.6,2742.3,0.07987102]
[1646838141554,0.03857029,2742.6,2742.3,0.07987102]
[1646838143203,0.03857029,2742.6,2742.3,0.06992174]
[1646838143605,0.04013211,2742.6,2742.3,0.06992174]
[1646838144404,0.0025712,2742.7,2742.4,6.0]
[1646838144710,0.0025712,2742.7,2742.5,0.693383]
[1646838144711,0.00404364,2742.6,2742.5,0.693383]
[1646838144909,0.03973856,2743.2,2742.8,6.3646]
[1646838145108,0.03961264,2743.2,2742.9,4.338768]
[1646838145310,0.0411392,2743.3,2743.2,6.0]
[1646838145549,0.03207228,2743.6,2743.3,6.0]
[1646838145550,0.07653176,2743.4,2743.3,6.0]
[1646838145749,0.03440045,2743.9,2743.5,0.3646]
[1646838145952,0.03440045,2743.9,2743.6,3.5]
[1646838146149,0.03440045,2743.9,2743.6,0.9114106]
[1646838146551,0.03440045,2743.9,2743.6,1.2114106]
[1646838146951,0.05607472,2744.0,2743.7,9.5]
[1646838147256,0.05607472,2744.0,2743.8,0.3]
[1646838147851,0.04624396,2744.1,2743.8,6.3]
[1646838148052,0.02316616,2744.3,2744.1,6.0]
[1646838148252,0.02316616,2744.3,2744.2,3.5]
[1646838148454,0.0026748,2744.5,2744.3,6.0]
[1646838149051,0.02122312,2744.6,2744.3,6.0]